fUSD/lending_fUSD_20250111
["ID","MTS","AMOUNT","RATE_DAILY","PERIOD"]
[348480571,1736562638799,-500.0,9.965e-05,2]
[348480572,1736562638809,-500.0,9.97e-05,2]
[348480573,1736562638820,-1000.0,9.97e-05,2]
[348480574,1736562638829,-193.29058252,9.973e-05,2]
[348480581,1736562640436,-307.15086146,9.973e-05,2]
[348480582,1736562640447,-337.53616443,9.973e-05,2]
[348480583,1736562640458,-162.46383557,9.973e-05,2]
[348480584,1736562640468,-150.0,9.997e-05,2]
[348480585,1736562640479,-297.99016442,9.998e-05,2]
[348480586,1736562640593,-320.16862741,9.998e-05,2]
[348480587,1736562640604,-431.44120817,9.998e-05,2]
[348480588,1736562640613,-985.58379183,9.998e-05,2]
[348480589,1736562640787,-208.82620817,9.998e-05,2]
[348480590,1736562640797,-456.72373459,9.998e-05,2]
[348480608,1736562643614,-75.87626541,9.998e-05,2]
[348480609,1736562643624,-1065.10502959,9.998e-05,2]
[348480610,1736562643739,-344.34497041,9.998e-05,2]
[348480611,1736562643748,-1053.50808299,9.998e-05,2]
[348480612,1736562643761,-411.14884864,9.998e-05,2]
[348480624,1736562646499,-1204.90204921,9.998e-05,2]
[348480625,1736562646653,-740.48101916,9.998e-05,2]
[348480626,1736562646663,-122.88738903,9.998e-05,2]
[348480627,1736562646678,-434.70261097,9.998e-05,2]
[348480628,1736562646689,-500.0,9.998e-05,2]
[348480629,1736562646699,-111.15522602,9.998e-05,2]
[348480630,1736562646711,-388.84477398,9.998e-05,2]
[348480631,1736562646722,-646.84,9.998e-05,2]
[348480632,1736562646732,-500.0,9.998e-05,2]
[348480633,1736562646742,-2198.46,9.998e-05,2]
[348480634,1736562646752,-1268.95,9.998e-05,2]
[348480635,1736562646763,-500.0,9.998e-05,2]
[348480636,1736562646772,-633.74,9.998e-05,2]
[348480638,1736562646782,-544.26713286,9.998e-05,2]
[348480640,1736562646792,-2124.76,9.998e-05,2]
[348480642,1736562646802,-668.11,9.998e-05,2]
[348480644,1736562646813,-618.85,9.998e-05,2]
[348480646,1736562646824,-1287.21,9.998e-05,2]
[348480648,1736562646834,-500.0,9.998e-05,2]
[348480651,1736562646845,-1793.43,9.998e-05,2]
[348480653,1736562646854,-975.67,9.998e-05,2]
[348480654,1736562646865,-1255.09,9.998e-05,2]
[348480656,1736562646875,-559.84,9.998e-05,2]
[348480659,1736562646885,-500.0,9.998e-05,2]
[348480661,1736562646899,-1926.33,9.998e-05,2]
[348480663,1736562646912,-928.29,9.998e-05,2]
[348480665,1736562646923,-503.93262889,9.998e-05,2]
[348480667,1736562646939,-500.0,9.998e-05,2]
[348480669,1736562646951,-500.0,9.998e-05,2]
[348480671,1736562646962,-500.0,9.998e-05,2]
[348480674,1736562646973,-500.0,9.998e-05,2]
[348480676,1736562646983,-502.42012795,9.998e-05,2]
[348480677,1736562646993,-500.0,9.998e-05,2]
[348480679,1736562647003,-507.4359803,9.998e-05,2]
[348480682,1736562647013,-517.62336899,9.998e-05,2]
[348480683,1736562647023,-500.0,9.998e-05,2]
[348480685,1736562647033,-500.0,9.998e-05,2]
[348480687,1736562647043,-500.0,9.998e-05,2]
[348480689,1736562647053,-610.75847402,9.998e-05,2]
[348480692,1736562647063,-500.0,9.998e-05,2]
[348480693,1736562647073,-504.81828108,9.998e-05,2]
[348480695,1736562647083,-976.59,9.998e-05,2]
[348480698,1736562647093,-500.0,9.998e-05,2]
[348480700,1736562647103,-500.0,9.998e-05,2]
[348480702,1736562647113,-1005.87,9.998e-05,2]
[348480704,1736562647123,-352.66939743,9.998e-05,2]
[348480706,1736562647133,-500.0,9.998e-05,2]
[348480708,1736562647143,-506.12168959,9.999e-05,2]
[348480710,1736562647156,-504.57800717,9.999e-05,2]
[348480712,1736562647166,-500.0,9.999e-05,2]
[348480714,1736562647176,-500.0,9.999e-05,2]
[348480715,1736562647186,-504.14298256,9.999e-05,2]
[348480717,1736562647197,-504.33556719,9.999e-05,2]
[348480719,1736562647207,-503.21977617,9.999e-05,2]
[348480721,1736562647217,-500.0,9.999e-05,2]
[348480723,1736562647227,-500.62947692,9.999e-05,2]
[348480725,1736562647236,-509.4749879,9.999e-05,2]
[348480727,1736562647246,-500.69363732,9.999e-05,2]
[348480729,1736562647256,-503.4784697,9.999e-05,2]
[348480732,1736562647265,-507.329883,9.999e-05,2]
[348480733,1736562647275,-502.43930208,9.999e-05,2]
[348480735,1736562647284,-584.28272407,9.999e-05,2]
[348480737,1736562647293,-500.36279791,9.999e-05,2]
[348480739,1736562647302,-503.60007941,9.999e-05,2]
[348480741,1736562647312,-504.4417219,9.999e-05,2]
[348480743,1736562647322,-501.26781287,9.999e-05,2]
[348480745,1736562647331,-510.05419731,9.999e-05,2]
[348480747,1736562647342,-500.25633288,9.999e-05,2]
[348480748,1736562647352,-492.48887571,9.999e-05,2]
[348480749,1736562647361,-522.45072753,9.999e-05,2]
[348480750,1736562647372,-502.05292412,9.999e-05,2]
[348480751,1736562647382,-507.43429856,9.999e-05,2]
[348480752,1736562647392,-506.50675463,9.999e-05,2]
[348480753,1736562647403,-507.24283587,9.999e-05,2]
[348480754,1736562647413,-386.54648262,9.999e-05,2]
[348480755,1736562647422,-507.11097847,9.999e-05,2]
[348480756,1736562647431,-505.82416652,9.999e-05,2]
[348480757,1736562647441,-462.4762983,9.999e-05,2]
[348480758,1736562647463,-503.95325141,9.999e-05,2]
[348480759,1736562647475,-507.83264912,9.999e-05,2]
[348480760,1736562647485,-418.91059725,9.999e-05,2]
[348480761,1736562647495,-502.80274227,9.999e-05,2]
[348480762,1736562647505,-506.44677302,9.999e-05,2]
[348480763,1736562647514,-504.55606839,9.999e-05,2]
[348480764,1736562647524,-502.53961882,9.999e-05,2]
[348480765,1736562647535,-506.70136843,9.999e-05,2]
[348480766,1736562647545,-501.87753644,9.999e-05,2]
[348480767,1736562647555,-502.29883775,9.999e-05,2]
[348480768,1736562647565,-502.47268988,9.999e-05,2]
[348480769,1736562647575,-508.33115516,9.999e-05,2]
[348480770,1736562647584,-504.55757435,9.999e-05,2]
[348480771,1736562647594,-501.91821421,9.999e-05,2]
[348480772,1736562647604,-502.58378495,9.999e-05,2]
[348480773,1736562647614,-505.18076911,9.999e-05,2]
[348480774,1736562647625,-503.40533176,9.999e-05,2]
[348480775,1736562647635,-507.06848102,9.999e-05,2]
[348480776,1736562647645,-505.1964462,9.999e-05,2]
[348480777,1736562647656,-500.22684214,9.999e-05,2]
[348480778,1736562647667,-504.35496513,9.999e-05,2]
[348480779,1736562647677,-500.0,9.999e-05,2]
[348480780,1736562647687,-574.50291787,9.999e-05,2]
[348480781,1736562647697,-504.64554549,9.999e-05,2]
[348480782,1736562647707,-501.80183971,9.999e-05,2]
[348480783,1736562647717,-525.75664313,9.999e-05,2]
[348480784,1736562647726,-501.17045583,9.999e-05,2]
[348480785,1736562647736,-504.12315781,9.999e-05,2]
[348480786,1736562647746,-500.0,9.999e-05,2]
[348480787,1736562647757,-505.85206651,9.999e-05,2]
[348480788,1736562647767,-503.08803253,9.999e-05,2]
[348480789,1736562647776,-504.61630339,9.999e-05,2]
[348480790,1736562647786,-503.71234199,9.999e-05,2]
[348480791,1736562647797,-501.79898522,9.999e-05,2]
[348480792,1736562647806,-504.92224968,9.999e-05,2]
[348480793,1736562647816,-511.03209172,9.999e-05,2]
[348480794,1736562647826,-502.39761524,9.999e-05,2]
[348480795,1736562647836,-504.41360225,9.999e-05,2]
[348480796,1736562647846,-504.69870339,9.999e-05,2]
[348480797,1736562647857,-500.95865931,9.999e-05,2]
[348480798,1736562647868,-500.36920338,9.999e-05,2]
[348480799,1736562647878,-551.88543994,9.999e-05,2]
[348480800,1736562647888,-502.87337133,9.999e-05,2]
[348480801,1736562647899,-505.39488351,9.999e-05,2]
[348480802,1736562647910,-504.16188771,9.999e-05,2]
[348480803,1736562647921,-506.14997293,9.999e-05,2]
[348480804,1736562647931,-503.60587765,9.999e-05,2]
[348480805,1736562647942,-501.31543395,9.999e-05,2]
[348480806,1736562647951,-504.04658178,9.999e-05,2]
[348480807,1736562647962,-501.36516218,9.999e-05,2]
[348480808,1736562647978,-503.03565997,9.999e-05,2]
[348480809,1736562647990,-506.25242855,9.999e-05,2]
[348480810,1736562647999,-503.30618643,9.999e-05,2]
[348480811,1736562648009,-500.0,9.999e-05,2]
[348480812,1736562648019,-507.41467021,9.999e-05,2]
[348480813,1736562648029,-508.37749021,9.999e-05,2]
[348480814,1736562648039,-500.0,9.999e-05,2]
[348480815,1736562648050,-500.0,9.999e-05,2]
[348480816,1736562648060,-506.07972325,9.999e-05,2]
[348480817,1736562648071,-503.27063005,9.999e-05,2]
[348480818,1736562648082,-670.56431,9.999e-05,2]
[348480819,1736562648094,-504.32387273,9.999e-05,2]
[348480820,1736562648104,-506.84647806,9.999e-05,2]
[348480821,1736562648114,-573.376195,9.999e-05,2]
[348480822,1736562648124,-500.0,9.999e-05,2]
[348480823,1736562648134,-1182.92,9.999e-05,2]
[348480824,1736562648144,-503.93186138,9.999e-05,2]
[348480825,1736562648157,-160.146658,9.999e-05,2]
[348480826,1736562648168,-500.0,9.999e-05,2]
[348480827,1736562648178,-635.63319374,9.999e-05,2]
[348480828,1736562648188,-500.0,9.999e-05,2]
[348480829,1736562648199,-506.57695331,9.999e-05,2]
[348480830,1736562648209,-500.51663621,9.999e-05,2]
[348480831,1736562648219,-500.0,9.999e-05,2]
[348480832,1736562648229,-506.15324609,9.999e-05,2]
[348480833,1736562648239,-504.00367027,9.999e-05,2]
[348480834,1736562648249,-2166.09,9.999e-05,2]
[348480835,1736562648259,-539.29986943,9.999e-05,2]
[348480836,1736562648270,-504.17277579,9.999e-05,2]
[348480837,1736562648280,-500.56923108,9.999e-05,2]
[348480838,1736562648290,-500.0,9.999e-05,2]
[348480839,1736562648299,-500.34356876,9.999e-05,2]
[348480840,1736562648310,-501.6916105,9.999e-05,2]
[348480841,1736562648320,-111.34872682,9.999e-05,2]
[348480842,1736562648939,-384.37415985,9.999e-05,2]
[348480843,1736562648950,-531.12290679,9.999e-05,2]
[348480844,1736562648962,-500.0,9.999e-05,2]
[348480845,1736562648971,-500.0,9.999e-05,2]
[348480846,1736562648981,-500.0,9.999e-05,2]
[348480847,1736562648992,-500.0,9.999e-05,2]
[348480848,1736562649002,-500.0,9.999e-05,2]
[348480849,1736562649012,-503.82983482,9.999e-05,2]
[348480850,1736562649021,-500.0,9.999e-05,2]
[348480851,1736562649031,-500.0,9.999e-05,2]
[348480852,1736562649042,-507.2596735,9.999e-05,2]
[348480853,1736562649052,-500.0,9.999e-05,2]
[348480854,1736562649062,-500.0,9.999e-05,2]
[348480855,1736562649072,-501.69313185,9.999e-05,2]
[348480856,1736562649083,-505.59545002,9.999e-05,2]
[348480857,1736562649093,-500.0,9.999e-05,2]
[348480858,1736562649103,-605.47066523,9.999e-05,2]
[348480859,1736562649113,-500.0,9.999e-05,2]
[348480860,1736562649122,-500.0,9.999e-05,2]
[348480861,1736562649132,-511.66309591,9.999e-05,2]
[348480862,1736562649142,-508.71466689,9.999e-05,2]
[348480863,1736562649153,-504.60796655,9.999e-05,2]
[348480864,1736562649163,-500.0,9.999e-05,2]
[348480865,1736562649173,-503.57416751,9.999e-05,2]
[348480866,1736562649183,-503.33038597,9.999e-05,2]
[348480867,1736562649195,-404.9243605,9.999e-05,2]
[348480868,1736562649205,-506.00422266,9.999e-05,2]
[348480869,1736562649215,-500.0,9.999e-05,2]
[348480870,1736562649225,-500.0,9.999e-05,2]
[348480871,1736562649235,-505.14518362,9.999e-05,2]
[348480872,1736562649245,-1494.04,9.999e-05,2]
[348480873,1736562649256,-500.0,9.999e-05,2]
[348480874,1736562649266,-500.0,9.999e-05,2]
[348480875,1736562649276,-500.0,9.999e-05,2]
[348480876,1736562649286,-507.60003882,9.999e-05,2]
[348480877,1736562649296,-509.06620531,9.999e-05,2]
[348480878,1736562649307,-500.0,9.999e-05,2]
[348480879,1736562649328,-506.53833763,9.999e-05,2]
[348480880,1736562649341,-514.57750088,9.999e-05,2]
[348480881,1736562649352,-510.75851941,9.999e-05,2]
[348480882,1736562649362,-500.0,9.999e-05,2]
[348480883,1736562649372,-507.43197034,9.999e-05,2]
[348480884,1736562649382,-500.0,9.999e-05,2]
[348480885,1736562649393,-505.76576185,9.999e-05,2]
[348480886,1736562649404,-500.0,9.999e-05,2]
[348480887,1736562649414,-500.0,9.999e-05,2]
[348480888,1736562649424,-409.94887404,9.999e-05,2]
[348480889,1736562649434,-502.96632916,9.999e-05,2]
[348480890,1736562649444,-500.0,9.999e-05,2]
[348480891,1736562649454,-450.58060361,9.999e-05,2]
[348480892,1736562649464,-500.0,9.999e-05,2]
[348480893,1736562649474,-520.44082289,9.999e-05,2]
[348480894,1736562649484,-500.0,9.999e-05,2]
[348480895,1736562649495,-1730.7,9.999e-05,2]
[348480896,1736562649505,-500.57,9.999e-05,2]
[348480897,1736562649515,-506.49161331,9.999e-05,2]
[348480898,1736562649526,-500.0,9.999e-05,2]
[348480899,1736562649537,-517.78387343,9.999e-05,2]
[348480900,1736562649548,-500.0,9.999e-05,2]
[348480901,1736562649557,-500.0,9.999e-05,2]
[348480902,1736562649567,-511.87937101,9.999e-05,2]
[348480903,1736562649577,-491.94551334,9.999e-05,2]
[348480904,1736562649587,-506.06594617,9.999e-05,2]
[348480905,1736562649597,-510.24909105,9.999e-05,2]
[348480906,1736562649607,-500.0,9.999e-05,2]
[348480907,1736562649618,-500.0,9.999e-05,2]
[348480908,1736562649629,-500.0,9.999e-05,2]
[348480909,1736562649639,-567.23,9.999e-05,2]
[348480910,1736562649650,-509.21448196,9.999e-05,2]
[348480911,1736562649660,-500.0,9.999e-05,2]
[348480912,1736562649669,-500.0,9.999e-05,2]
[348480913,1736562649679,-500.54215845,9.999e-05,2]
[348480914,1736562649690,-499.99747789,9.999e-05,2]
[348480915,1736562649700,-821.93,9.999e-05,2]
[348480916,1736562649710,-517.89998573,9.999e-05,2]
[348480917,1736562649720,-500.79882522,9.999e-05,2]
[348480918,1736562649730,-753.41,9.999e-05,2]
[348480919,1736562649740,-608.45,9.999e-05,2]
[348480920,1736562649749,-503.57857458,9.999e-05,2]
[348480921,1736562649759,-500.0,9.999e-05,2]
[348480922,1736562649768,-512.40568043,9.999e-05,2]
[348480923,1736562649778,-554.4704195,9.999e-05,2]
[348480924,1736562649787,-500.0,9.999e-05,2]
[348480925,1736562649797,-500.0,9.999e-05,2]
[348480926,1736562649806,-500.28660949,9.999e-05,2]
[348480927,1736562649816,-991.21,9.999e-05,2]
[348480928,1736562649827,-500.0,9.999e-05,2]
[348480929,1736562649836,-500.0,9.999e-05,2]
[348480930,1736562649846,-510.87272857,9.999e-05,2]
[348480931,1736562649855,-502.63534614,9.999e-05,2]
[348480932,1736562649865,-507.08588602,9.999e-05,2]
[348480933,1736562649875,-455.01139839,9.999e-05,2]
[348480934,1736562649885,-502.32488373,9.999e-05,2]
[348480935,1736562649895,-514.58271269,9.999e-05,2]
[348480936,1736562649907,-500.0,9.999e-05,2]
[348480937,1736562649920,-499.55967774,9.999e-05,2]
[348480938,1736562649930,-500.0,9.999e-05,2]
[348480939,1736562649939,-508.14627803,9.999e-05,2]
[348480940,1736562649950,-511.63802836,9.999e-05,2]
[348480941,1736562649960,-550.02,9.999e-05,2]
[348480942,1736562649970,-500.0,9.999e-05,2]
[348480943,1736562649979,-500.0,9.999e-05,2]
[348480944,1736562649990,-500.0,9.999e-05,2]
[348480945,1736562650002,-500.0,9.999e-05,2]
[348480946,1736562650013,-159.855788,9.999e-05,2]
[348480947,1736562650022,-511.23,9.999e-05,2]
[348480948,1736562650032,-500.0,9.999e-05,2]
[348480949,1736562650041,-500.0,9.999e-05,2]
[348480950,1736562650052,-500.0,9.999e-05,2]
[348480951,1736562650062,-509.07646939,9.999e-05,2]
[348480952,1736562650072,-500.0,9.999e-05,2]
[348480953,1736562650082,-500.0,9.999e-05,2]
[348480954,1736562650092,-500.0,9.999e-05,2]
[348480955,1736562650102,-501.11093873,9.999e-05,2]
[348480956,1736562650111,-507.27213314,9.999e-05,2]
[348480957,1736562650121,-500.0,9.999e-05,2]
[348480958,1736562650131,-500.0,9.999e-05,2]
[348480959,1736562650141,-511.93736086,9.999e-05,2]
[348480960,1736562650153,-218.340167,9.999e-05,2]
[348480961,1736562650162,-500.0,9.999e-05,2]
[348480962,1736562650172,-500.0,9.999e-05,2]
[348480963,1736562650182,-505.54828558,9.999e-05,2]
[348480964,1736562650192,-500.0,9.999e-05,2]
[348480965,1736562650201,-718.94,9.999e-05,2]
[348480966,1736562650211,-500.0,9.999e-05,2]
[348480967,1736562650221,-500.0,9.999e-05,2]
[348480968,1736562650230,-508.82684832,9.999e-05,2]
[348480969,1736562650239,-1986.65,9.999e-05,2]
[348480970,1736562650249,-500.0,9.999e-05,2]
[348480971,1736562650258,-502.99224206,9.999e-05,2]
[348480972,1736562650267,-500.0,9.999e-05,2]
[348480973,1736562650276,-500.0,9.999e-05,2]
[348480974,1736562650285,-500.0,9.999e-05,2]
[348480975,1736562650295,-500.0,9.999e-05,2]
[348480976,1736562650304,-500.0,9.999e-05,2]
[348480977,1736562650314,-500.0,9.999e-05,2]
[348480978,1736562650324,-500.0,9.999e-05,2]
[348480979,1736562650335,-747.34,9.999e-05,2]
[348480980,1736562650345,-500.0,9.999e-05,2]
[348480981,1736562650355,-500.0,9.999e-05,2]
[348480982,1736562650365,-500.0,9.999e-05,2]
[348480983,1736562650374,-500.0,9.999e-05,2]
[348480984,1736562650384,-514.0571684,9.999e-05,2]
[348480985,1736562650393,-500.0,9.999e-05,2]
[348480986,1736562650404,-1000.0,9.999e-05,2]
[348480987,1736562650413,-500.0,9.999e-05,2]
[348480988,1736562650423,-500.0,9.999e-05,2]
[348480989,1736562650433,-500.0,9.999e-05,2]
[348480990,1736562650442,-500.0,9.999e-05,2]
[348480991,1736562650452,-500.0,9.999e-05,2]
[348480992,1736562650461,-500.0,9.999e-05,2]
[348480993,1736562650471,-500.0,9.999e-05,2]
[348480994,1736562650480,-500.0,9.999e-05,2]
[348480995,1736562650490,-500.0,9.999e-05,2]
[348480996,1736562650500,-228.44,9.999e-05,2]
[348480997,1736562650509,-1042.76118497,9.999e-05,3]
[348480998,1736562650519,-500.0,9.999e-05,2]
[348480999,1736562650528,-500.0,9.999e-05,2]
[348481000,1736562650538,-887.2,9.999e-05,2]
[348481001,1736562650547,-500.0,9.999e-05,2]
[348481002,1736562650557,-500.0,9.999e-05,2]
[348481003,1736562650567,-500.0,9.999e-05,2]
[348481004,1736562650576,-2103.57,9.999e-05,2]
[348481005,1736562650586,-1154.27,9.999e-05,2]
[348481006,1736562650595,-500.0,9.999e-05,2]
[348481007,1736562650605,-1236.29,9.999e-05,2]
[348481008,1736562650614,-500.0,9.999e-05,2]
[348481009,1736562650624,-500.0,9.999e-05,2]
[348481010,1736562650634,-500.0,9.999e-05,2]
[348481011,1736562650643,-500.0,9.999e-05,2]
[348481012,1736562650654,-500.0,9.999e-05,2]
[348481013,1736562650663,-839.04,9.999e-05,2]
[348481014,1736562650673,-1002.81,9.999e-05,2]
[348481015,1736562650682,-500.0,9.999e-05,2]
[348481016,1736562650691,-500.0,9.999e-05,2]
[348481017,1736562650702,-500.0,9.999e-05,2]
[348481018,1736562650712,-500.0,9.999e-05,2]
[348481019,1736562650721,-914.78,9.999e-05,2]
[348481020,1736562650731,-500.0,9.999e-05,2]
[348481021,1736562650741,-850.47,9.999e-05,2]
[348481022,1736562650750,-500.0,9.999e-05,2]
[348481023,1736562650759,-500.0,9.999e-05,2]
[348481024,1736562650770,-965.07,9.999e-05,2]
[348481025,1736562650779,-500.0,9.999e-05,2]
[348481026,1736562650789,-1818.35,9.999e-05,2]
[348481027,1736562650798,-500.0,9.999e-05,2]
[348481028,1736562650808,-500.0,9.999e-05,2]
[348481029,1736562650817,-500.0,9.999e-05,2]
[348481030,1736562650827,-2286.56,9.999e-05,2]
[348481031,1736562650836,-500.0,9.999e-05,2]
[348481032,1736562650846,-500.0,9.999e-05,2]
[348481033,1736562650855,-2525.86,9.999e-05,2]
[348481034,1736562650865,-500.0,9.999e-05,2]
[348481035,1736562650875,-2048.34,9.999e-05,2]
[348481036,1736562650884,-522.59,9.999e-05,2]
[348481037,1736562650894,-2050.02,9.999e-05,2]
[348481038,1736562650904,-500.0,9.999e-05,2]
[348481039,1736562650916,-918.93,9.999e-05,2]
[348481040,1736562650926,-500.0,9.999e-05,2]
[348481041,1736562650935,-472.34387228,9.999e-05,2]
[348481042,1736562650945,-500.0,9.999e-05,2]
[348481043,1736562650956,-839.45,9.999e-05,2]
[348481044,1736562650966,-500.0,9.999e-05,2]
[348481045,1736562650975,-500.0,9.999e-05,2]
[348481046,1736562650985,-3010.48,9.999e-05,2]
[348481047,1736562650997,-494.16186682,9.999e-05,2]
[348481048,1736562651006,-2253.11,9.999e-05,2]
[348481049,1736562651016,-1072.16,9.999e-05,2]
[348481050,1736562651026,-500.0,9.999e-05,2]
[348481051,1736562651035,-505.49796179,9.999e-05,2]
[348481052,1736562651045,-2105.98,9.999e-05,2]
[348481053,1736562651055,-500.0,9.999e-05,2]
[348481054,1736562651064,-500.0,9.999e-05,2]
[348481055,1736562651074,-758.27,9.999e-05,2]
[348481056,1736562651083,-500.0,9.999e-05,2]
[348481057,1736562651093,-500.0,9.999e-05,2]
[348481058,1736562651103,-500.0,9.999e-05,2]
[348481059,1736562651113,-500.0,9.999e-05,2]
[348481060,1736562651122,-500.0,9.999e-05,2]
[348481061,1736562651132,-500.83673148,9.999e-05,2]
[348481062,1736562651142,-500.0,9.999e-05,2]
[348481063,1736562651151,-2117.8,9.999e-05,2]
[348481064,1736562651162,-500.0,9.999e-05,2]
[348481065,1736562651171,-1673.9,9.999e-05,2]
[348481066,1736562651181,-500.90767718,9.999e-05,2]
[348481067,1736562651191,-500.77237295,9.999e-05,2]
[348481068,1736562651201,-940.52,9.999e-05,2]
[348481069,1736562651211,-500.0,9.999e-05,2]
[348481070,1736562651221,-500.257392,9.999e-05,2]
[348481071,1736562651231,-500.0,9.999e-05,2]
[348481072,1736562651241,-500.0,9.999e-05,2]
[348481073,1736562651251,-500.0,9.999e-05,2]
[348481074,1736562651261,-2333.68,9.999e-05,2]
[348481075,1736562651270,-500.0,9.999e-05,2]
[348481076,1736562651280,-501.80213216,9.999e-05,2]
[348481077,1736562651290,-504.08218524,9.999e-05,2]
[348481078,1736562651300,-500.0,9.999e-05,2]
[348481079,1736562651309,-500.0,9.999e-05,2]
[348481080,1736562651319,-500.0,9.999e-05,2]
[348481081,1736562651329,-500.0,9.999e-05,2]
[348481082,1736562651339,-496.67274746,9.999e-05,2]
[348481083,1736562651349,-502.46633741,9.999e-05,2]
[348481084,1736562651358,-1141.82,9.999e-05,2]
[348481085,1736562651367,-511.45352646,9.999e-05,2]
[348481086,1736562651377,-503.86081132,9.999e-05,2]
[348481087,1736562651387,-502.52450737,9.999e-05,2]
[348481088,1736562651397,-651.14,9.999e-05,2]
[348481089,1736562651408,-511.16336628,9.999e-05,2]
[348481090,1736562651418,-500.0,9.999e-05,2]
[348481091,1736562651429,-507.38765294,9.999e-05,2]
[348481092,1736562651439,-500.0,9.999e-05,2]
[348481093,1736562651451,-500.0,9.999e-05,2]
[348481094,1736562651461,-508.81309899,9.999e-05,2]
[348481095,1736562651470,-500.0,9.999e-05,2]
[348481096,1736562651479,-500.0,9.999e-05,2]
[348481097,1736562651489,-507.7042373,9.999e-05,2]
[348481098,1736562651498,-500.0,9.999e-05,2]
[348481099,1736562651508,-500.0,9.999e-05,2]
[348481100,1736562651518,-902.35,9.999e-05,2]
[348481101,1736562651529,-503.73898629,9.999e-05,2]
[348481102,1736562651540,-500.0,9.999e-05,2]
[348481103,1736562651550,-500.0,9.999e-05,2]
[348481104,1736562651560,-771.39,9.999e-05,2]
[348481105,1736562651570,-502.1899425,9.999e-05,2]
[348481106,1736562651580,-500.30270514,9.999e-05,2]
[348481107,1736562651590,-500.91556057,9.999e-05,2]
[348481108,1736562651599,-501.19850767,9.999e-05,2]
[348481109,1736562651609,-506.93263573,9.999e-05,2]
[348481110,1736562651619,-500.0,9.999e-05,2]
[348481111,1736562651628,-950.59,9.999e-05,2]
[348481112,1736562651637,-500.0,9.999e-05,2]
[348481113,1736562651648,-514.15,9.999e-05,2]
[348481114,1736562651659,-500.0,9.999e-05,2]
[348481115,1736562651668,-503.32868732,9.999e-05,2]
[348481116,1736562651678,-502.3490458,9.999e-05,2]
[348481117,1736562651688,-501.70058589,9.999e-05,2]
[348481118,1736562651697,-1177.1,9.999e-05,2]
[348481119,1736562651707,-814.24,9.999e-05,2]
[348481120,1736562651716,-500.0,9.999e-05,2]
[348481121,1736562651726,-500.0,9.999e-05,2]
[348481122,1736562651736,-504.02712758,9.999e-05,2]
[348481123,1736562651747,-501.27708254,9.999e-05,2]
[348481124,1736562651756,-20443.12671179,0.0001,2]
[348481125,1736562899411,754.74,8.219e-05,2]
[348481126,1736563632135,1838.3918862,0.0002,120]
[348481136,1736563831605,-250.0,9.046e-05,2]
[348481137,1736563831614,-215.77,9.082e-05,2]
[348481138,1736563831624,-575.99047077,9.082e-05,2]
[348481139,1736563831636,-9282.16531001,9.082e-05,2]
[348481140,1736563831831,-537.80821922,9.082e-05,2]
[348481141,1736563831840,-1000.0,9.088e-05,2]
[348481142,1736563831851,-247.41,9.128e-05,2]
[348481143,1736563831861,-200.0,9.167e-05,2]
[348481144,1736563831871,-679.78,9.175e-05,2]
[348481145,1736563831880,-11134.16,9.182e-05,2]
[348481146,1736563831890,-183.06,9.241e-05,2]
[348481147,1736563831900,-150.0,9.479e-05,2]
[348481148,1736563831911,-274.891,9.5e-05,2]
[348481149,1736563831920,-150.0,9.752e-05,2]
[348481150,1736563831930,-1587.0871,9.899e-05,2]
[348481151,1736563831939,-500.0,9.899e-05,2]
[348481152,1736563831949,-150.0,9.899e-05,2]
[348481153,1736563831958,-866.5664,9.9e-05,2]
[348481154,1736563831968,-7615.8387,9.9e-05,2]
[348481155,1736563831977,-4889.3815,9.9e-05,2]
[348481156,1736563831987,-500.0,9.97e-05,2]
[348481157,1736563831996,-1000.0,9.97e-05,2]
[348481158,1736563832006,-502.6914198,9.973e-05,2]
[348481159,1736563832016,-4070.833,9.997e-05,2]
[348481160,1736563832025,-232.276,9.997e-05,2]
[348481161,1736563832034,-500.0,9.998e-05,2]
[348481162,1736563832044,-500.0,9.998e-05,2]
[348481163,1736563832055,-500.0,9.998e-05,2]
[348481164,1736563832064,-500.0,9.998e-05,2]
[348481165,1736563832074,-171.00752392,9.998e-05,2]
[348481166,1736563832084,-500.0,9.998e-05,2]
[348481167,1736563832093,-500.0,9.998e-05,2]
[348481168,1736563832106,-500.0,9.998e-05,2]
[348481169,1736563832117,-500.0,9.998e-05,2]